[Event "Titled Tuesday Blitz August 24 2021"]
[White "Melikhov, Evgeny V."]
[Black "Liyanage, Ranindu Dilshan"]
[WhiteFideId "4122046"]
[BlackFideId "9915834"]
[WhiteElo "1957"]
[BlackElo "1839"]
[Result "0-1"]
[Round "07"]
[TimeControl "180+1"]
[Date "2021.08.24"]
[WhiteClock "0:01:08"]
[BlackClock "0:00:43"]

1. d4 {[%clk 0:03:00]}  Nf6 {[%clk 0:02:59]} 2. c4 {[%clk 0:03:00]}  e6 {[%clk 0:02:59]} 3. Nc3 {[%clk 0:03:00]}  Bb4 {[%clk 0:02:58]} 4. Qc2 {[%clk 0:03:00]}  O-O {[%clk 0:02:59]} 5. e4 {[%clk 0:02:59]}  d5 {[%clk 0:02:59]} 6. e5 {[%clk 0:02:59]}  Ne4 {[%clk 0:03:00]} 7. Bd3 {[%clk 0:02:58]}  c5 {[%clk 0:02:59]} 8. Nf3 {[%clk 0:02:58]}  cxd4 {[%clk 0:03:00]} 9. Nxd4 {[%clk 0:02:57]}  Nd7 {[%clk 0:03:00]} 10. Bf4 {[%clk 0:02:57]}  Qh4 {[%clk 0:03:01]} 11. g3 {[%clk 0:02:56]}  Qh5 {[%clk 0:03:01]} 12. O-O {[%clk 0:02:56]}  Bxc3 {[%clk 0:02:53]} 13. bxc3 {[%clk 0:02:56]}  g5 {[%clk 0:02:17]} 14. cxd5 {[%clk 0:02:52]}  exd5 {[%clk 0:02:14]} 15. e6 {[%clk 0:02:45]}  fxe6 {[%clk 0:01:58]} 16. Nxe6 {[%clk 0:02:40]}  gxf4 {[%clk 0:01:57]} 17. Nxf8 {[%clk 0:02:34]}  Nxf8 {[%clk 0:01:57]} 18. Bxe4 {[%clk 0:02:33]}  dxe4 {[%clk 0:01:56]} 19. Qxe4 {[%clk 0:02:32]}  f3 {[%clk 0:01:47]} 20. Rad1 {[%clk 0:02:29]}  Bf5 {[%clk 0:01:35]} 21. Qd5+ {[%clk 0:02:21]}  Ne6 {[%clk 0:01:18]} 22. Rfe1 {[%clk 0:02:20]}  Re8 {[%clk 0:01:12]} 23. Rd3 {[%clk 0:01:29]}  Qh3 {[%clk 0:00:57]} 24. Qxf3 {[%clk 0:01:28]}  Bxd3 {[%clk 0:00:57]} 25. Qxd3 {[%clk 0:01:28]}  Qh5 {[%clk 0:00:55]} 26. f4 {[%clk 0:01:18]}  Qc5+ {[%clk 0:00:52]} 27. Qe3 {[%clk 0:01:17]}  Qxe3+ {[%clk 0:00:52]} 28. Rxe3 {[%clk 0:01:16]}  Kf7 {[%clk 0:00:52]} 29. Re5 {[%clk 0:01:15]}  Rc8 {[%clk 0:00:47]} 30. Rb5 {[%clk 0:01:12]}  b6 {[%clk 0:00:46]} 31. Rb3 {[%clk 0:01:11]}  Nc5 {[%clk 0:00:44]} 32. Kg2 {[%clk 0:01:08]}  Nxb3 {[%clk 0:00:43]} 0-1


[Site "https://www.chess.com"]

[Event "Titled Tuesday Blitz August 24 2021"]
[White "Mezentsev, Ivan"]
[Black "Marcziter, Dmitrii"]
[WhiteFideId "13706195"]
[BlackFideId "13900765"]
[WhiteElo "2295"]
[BlackElo "2155"]
[Result "1-0"]
[Round "07"]
[TimeControl "180+1"]
[Date "2021.08.24"]
[WhiteClock "0:00:48"]
[BlackClock "0:00:22"]

1. d4 {[%clk 0:02:53]}  Nf6 {[%clk 0:02:58]} 2. Nf3 {[%clk 0:02:52]}  g6 {[%clk 0:02:51]} 3. Bf4 {[%clk 0:02:51]}  Bg7 {[%clk 0:02:52]} 4. e3 {[%clk 0:02:51]}  O-O {[%clk 0:02:52]} 5. h3 {[%clk 0:02:51]}  d6 {[%clk 0:02:53]} 6. Be2 {[%clk 0:02:51]}  Nbd7 {[%clk 0:02:54]} 7. O-O {[%clk 0:02:50]}  Qe8 {[%clk 0:02:55]} 8. c4 {[%clk 0:02:49]}  e5 {[%clk 0:02:54]} 9. Bh2 {[%clk 0:02:48]}  Qe7 {[%clk 0:02:52]} 10. Nc3 {[%clk 0:02:47]}  c6 {[%clk 0:02:52]} 11. b4 {[%clk 0:02:31]}  Re8 {[%clk 0:02:23]} 12. Re1 {[%clk 0:02:25]}  e4 {[%clk 0:02:01]} 13. Nd2 {[%clk 0:02:24]}  Nf8 {[%clk 0:02:00]} 14. c5 {[%clk 0:02:17]}  d5 {[%clk 0:01:50]} 15. b5 {[%clk 0:02:16]}  Bd7 {[%clk 0:01:49]} 16. a4 {[%clk 0:02:15]}  h5 {[%clk 0:01:47]} 17. a5 {[%clk 0:02:14]}  a6 {[%clk 0:01:47]} 18. bxc6 {[%clk 0:02:12]}  bxc6 {[%clk 0:01:47]} 19. Rb1 {[%clk 0:02:11]}  Bf5 {[%clk 0:01:44]} 20. Rb6 {[%clk 0:02:06]}  Qe6 {[%clk 0:01:36]} 21. Nb3 {[%clk 0:01:54]}  N8d7 {[%clk 0:01:34]} 22. Rxa6 {[%clk 0:01:54]}  Rxa6 {[%clk 0:01:32]} 23. Bxa6 {[%clk 0:01:53]}  Nh7 {[%clk 0:01:25]} 24. Bf1 {[%clk 0:01:40]}  h4 {[%clk 0:01:18]} 25. Na4 {[%clk 0:01:30]}  Ng5 {[%clk 0:01:15]} 26. Nd2 {[%clk 0:01:28]}  Nf6 {[%clk 0:01:10]} 27. Kh1 {[%clk 0:01:24]}  Nh5 {[%clk 0:01:07]} 28. Nb6 {[%clk 0:01:22]}  Nxh3 {[%clk 0:01:00]} 29. gxh3 {[%clk 0:01:22]}  Bxh3 {[%clk 0:01:00]} 30. Bxh3 {[%clk 0:01:21]}  Qxh3 {[%clk 0:00:59]} 31. Rg1 {[%clk 0:01:21]}  Qf5 {[%clk 0:00:53]} 32. Qe2 {[%clk 0:01:17]}  Bxd4 {[%clk 0:00:44]} 33. exd4 {[%clk 0:01:12]}  e3 {[%clk 0:00:44]} 34. fxe3 {[%clk 0:01:11]}  h3 {[%clk 0:00:36]} 35. a6 {[%clk 0:01:02]}  Re4 {[%clk 0:00:31]} 36. a7 {[%clk 0:00:57]}  Qe6 {[%clk 0:00:24]} 37. a8=Q+ {[%clk 0:00:56]}  Kh7 {[%clk 0:00:24]} 38. Qxh5+ {[%clk 0:00:50]}  gxh5 {[%clk 0:00:21]} 39. Qg8+ {[%clk 0:00:49]}  Kh6 {[%clk 0:00:22]} 40. Qh8# {[%clk 0:00:48]} 1-0


[Site "https://www.chess.com"]

[Event "Titled Tuesday Blitz August 24 2021"]
[White "Moroni, Luca Jr"]
[Black "Kekelidze, Mikheil"]
[WhiteFideId "865834"]
[BlackFideId "13600818"]
[WhiteElo "2491"]
[BlackElo "2387"]
[Result "1/2-1/2"]
[Round "07"]
[TimeControl "180+1"]
[Date "2021.08.24"]
[WhiteClock "0:00:05"]
[BlackClock "0:00:07"]

1. d4 {[%clk 0:03:00]}  e6 {[%clk 0:03:00]} 2. c4 {[%clk 0:02:58]}  Bb4+ {[%clk 0:02:59]} 3. Nc3 {[%clk 0:02:55]}  Nf6 {[%clk 0:02:58]} 4. Nf3 {[%clk 0:02:55]}  b6 {[%clk 0:02:56]} 5. Qb3 {[%clk 0:02:54]}  c5 {[%clk 0:02:53]} 6. dxc5 {[%clk 0:02:55]}  bxc5 {[%clk 0:02:50]} 7. a3 {[%clk 0:02:51]}  Ba5 {[%clk 0:02:46]} 8. Bf4 {[%clk 0:02:43]}  Nc6 {[%clk 0:02:39]} 9. e3 {[%clk 0:02:43]}  Ne4 {[%clk 0:02:27]} 10. Bd3 {[%clk 0:02:28]}  Nxc3 {[%clk 0:02:25]} 11. bxc3 {[%clk 0:02:29]}  Bc7 {[%clk 0:02:23]} 12. Be4 {[%clk 0:02:10]}  Rb8 {[%clk 0:02:07]} 13. Qa4 {[%clk 0:02:02]}  Bb7 {[%clk 0:02:03]} 14. Rb1 {[%clk 0:01:52]}  Bxf4 {[%clk 0:02:02]} 15. exf4 {[%clk 0:01:51]}  O-O {[%clk 0:01:58]} 16. O-O {[%clk 0:01:49]}  Qc7 {[%clk 0:01:53]} 17. f5 {[%clk 0:01:40]}  Ne7 {[%clk 0:01:31]} 18. Bxb7 {[%clk 0:01:27]}  Rxb7 {[%clk 0:01:31]} 19. Rxb7 {[%clk 0:01:23]}  Qxb7 {[%clk 0:01:31]} 20. fxe6 {[%clk 0:01:22]}  dxe6 {[%clk 0:01:30]} 21. Qb5 {[%clk 0:01:09]}  Qc7 {[%clk 0:01:28]} 22. Rb1 {[%clk 0:01:07]}  Rc8 {[%clk 0:01:14]} 23. h3 {[%clk 0:00:52]}  h6 {[%clk 0:01:11]} 24. Rd1 {[%clk 0:00:47]}  Rb8 {[%clk 0:00:56]} 25. Qd7 {[%clk 0:00:34]}  Qxd7 {[%clk 0:00:53]} 26. Rxd7 {[%clk 0:00:35]}  Nc6 {[%clk 0:00:51]} 27. Rc7 {[%clk 0:00:35]}  Rb6 {[%clk 0:00:51]} 28. Nd2 {[%clk 0:00:28]}  f5 {[%clk 0:00:48]} 29. Nf3 {[%clk 0:00:25]}  g5 {[%clk 0:00:46]} 30. g4 {[%clk 0:00:24]}  fxg4 {[%clk 0:00:44]} 31. hxg4 {[%clk 0:00:24]}  Ra6 {[%clk 0:00:44]} 32. Kg2 {[%clk 0:00:23]}  Kf8 {[%clk 0:00:43]} 33. Nd2 {[%clk 0:00:20]}  Ke8 {[%clk 0:00:41]} 34. Ne4 {[%clk 0:00:19]}  Kd8 {[%clk 0:00:41]} 35. Rh7 {[%clk 0:00:14]}  Rxa3 {[%clk 0:00:38]} 36. Nxc5 {[%clk 0:00:14]}  Rxc3 {[%clk 0:00:33]} 37. Nxe6+ {[%clk 0:00:14]}  Ke8 {[%clk 0:00:33]} 38. c5 {[%clk 0:00:15]}  Ne5 {[%clk 0:00:30]} 39. Rxa7 {[%clk 0:00:10]}  Nxg4 {[%clk 0:00:28]} 40. Ra4 {[%clk 0:00:06]}  Nf6 {[%clk 0:00:26]} 41. Ra7 {[%clk 0:00:05]}  Nd5 {[%clk 0:00:24]} 42. Nc7+ {[%clk 0:00:04]}  Nxc7 {[%clk 0:00:23]} 43. Rxc7 {[%clk 0:00:05]}  h5 {[%clk 0:00:22]} 44. c6 {[%clk 0:00:05]}  h4 {[%clk 0:00:21]} 45. Rg7 {[%clk 0:00:03]}  Rxc6 {[%clk 0:00:17]} 46. Rxg5 {[%clk 0:00:02]}  Rc4 {[%clk 0:00:16]} 47. Rh5 {[%clk 0:00:02]}  Kf7 {[%clk 0:00:16]} 48. Kh3 {[%clk 0:00:03]}  Kg6 {[%clk 0:00:16]} 49. Rxh4 {[%clk 0:00:03]}  Rc3+ {[%clk 0:00:16]} 50. Kg2 {[%clk 0:00:03]}  Rc7 {[%clk 0:00:16]} 51. Rh1 {[%clk 0:00:04]}  Kf5 {[%clk 0:00:16]} 52. Re1 {[%clk 0:00:04]}  Rc6 {[%clk 0:00:16]} 53. Kf3 {[%clk 0:00:04]}  Rc3+ {[%clk 0:00:16]} 54. Kg2 {[%clk 0:00:05]}  Rc4 {[%clk 0:00:16]} 55. Rd1 {[%clk 0:00:05]}  Rc5 {[%clk 0:00:17]} 56. Rd3 {[%clk 0:00:05]}  Re5 {[%clk 0:00:16]} 57. Rh3 {[%clk 0:00:06]}  Kg5 {[%clk 0:00:16]} 58. Kg3 {[%clk 0:00:05]}  Rd5 {[%clk 0:00:15]} 59. Rh1 {[%clk 0:00:06]}  Rd3+ {[%clk 0:00:14]} 60. f3 {[%clk 0:00:06]}  Rd5 {[%clk 0:00:15]} 61. Ra1 {[%clk 0:00:05]}  Kg6 {[%clk 0:00:15]} 62. Ra6+ {[%clk 0:00:04]}  Kg5 {[%clk 0:00:14]} 63. Rb6 {[%clk 0:00:04]}  Rc5 {[%clk 0:00:14]} 64. Re6 {[%clk 0:00:04]}  Kf5 {[%clk 0:00:13]} 65. Rh6 {[%clk 0:00:04]}  Kg5 {[%clk 0:00:13]} 66. Rh8 {[%clk 0:00:05]}  Kg6 {[%clk 0:00:13]} 67. f4 {[%clk 0:00:04]}  Kg7 {[%clk 0:00:13]} 68. Rh1 {[%clk 0:00:03]}  Rc7 {[%clk 0:00:13]} 69. Kg4 {[%clk 0:00:03]}  Rc6 {[%clk 0:00:13]} 70. f5 {[%clk 0:00:02]}  Rc4+ {[%clk 0:00:13]} 71. Kg5 {[%clk 0:00:03]}  Rc2 {[%clk 0:00:13]} 72. f6+ {[%clk 0:00:03]}  Kg8 {[%clk 0:00:14]} 73. Rg1 {[%clk 0:00:03]}  Kf7 {[%clk 0:00:13]} 74. Rg3 {[%clk 0:00:02]}  Rc6 {[%clk 0:00:12]} 75. Rf3 {[%clk 0:00:02]}  Rc2 {[%clk 0:00:11]} 76. Rg3 {[%clk 0:00:03]}  Rc4 {[%clk 0:00:11]} 77. Rh3 {[%clk 0:00:02]}  Rc5+ {[%clk 0:00:09]} 78. Kg4 {[%clk 0:00:02]}  Ke6 {[%clk 0:00:09]} 79. Rh6 {[%clk 0:00:02]}  Rc4+ {[%clk 0:00:08]} 80. Kf3 {[%clk 0:00:03]}  Rb4 {[%clk 0:00:08]} 81. Kg3 {[%clk 0:00:03]}  Ra4 {[%clk 0:00:08]} 82. Rh4 {[%clk 0:00:03]}  Ra5 {[%clk 0:00:07]} 83. Rg4 {[%clk 0:00:03]}  Kf7 {[%clk 0:00:07]} 84. Rf4 {[%clk 0:00:03]}  Ra6 {[%clk 0:00:06]} 85. Kg4 {[%clk 0:00:04]}  Ra5 {[%clk 0:00:07]} 86. Rf5 {[%clk 0:00:04]}  Ra3 {[%clk 0:00:06]} 87. Kg5 {[%clk 0:00:04]}  Rg3+ {[%clk 0:00:06]} 88. Kf4 {[%clk 0:00:04]}  Rg6 {[%clk 0:00:06]} 89. Ke5 {[%clk 0:00:04]}  Rg1 {[%clk 0:00:07]} 90. Rh5 {[%clk 0:00:04]}  Re1+ {[%clk 0:00:07]} 91. Kf5 {[%clk 0:00:04]}  Rf1+ {[%clk 0:00:07]} 92. Ke5 {[%clk 0:00:05]}  Re1+ {[%clk 0:00:07]} 93. Kf5 {[%clk 0:00:05]}  Rf1+ {[%clk 0:00:07]} 94. Ke5 {[%clk 0:00:05]}  Re1+ {[%clk 0:00:07]} 1/2-1/2


[Site "https://www.chess.com"]

[Event "Titled Tuesday Blitz August 24 2021"]
[White "Nefedov, Sergey"]
[Black "Laurusas, Tomas"]
[WhiteFideId "24113417"]
[BlackFideId "12803731"]
[WhiteElo "2380"]
[BlackElo "2542"]
[Result "1-0"]
[Round "07"]
[TimeControl "180+1"]
[Date "2021.08.24"]
[WhiteClock "0:00:53"]
[BlackClock "0:00:19"]

1. d4 {[%clk 0:03:00]}  Nf6 {[%clk 0:02:56]} 2. Nf3 {[%clk 0:02:56]}  d5 {[%clk 0:02:55]} 3. c4 {[%clk 0:02:57]}  c6 {[%clk 0:02:54]} 4. Nc3 {[%clk 0:02:57]}  a6 {[%clk 0:02:53]} 5. cxd5 {[%clk 0:02:56]}  cxd5 {[%clk 0:02:53]} 6. Bf4 {[%clk 0:02:57]}  Nc6 {[%clk 0:02:53]} 7. e3 {[%clk 0:02:57]}  Bg4 {[%clk 0:02:53]} 8. Be2 {[%clk 0:02:56]}  e6 {[%clk 0:02:54]} 9. O-O {[%clk 0:02:57]}  Bd6 {[%clk 0:02:50]} 10. Bg3 {[%clk 0:02:55]}  Bxg3 {[%clk 0:02:49]} 11. hxg3 {[%clk 0:02:56]}  O-O {[%clk 0:02:47]} 12. Na4 {[%clk 0:02:55]}  Nd7 {[%clk 0:02:42]} 13. Rc1 {[%clk 0:02:55]}  Rc8 {[%clk 0:02:42]} 14. a3 {[%clk 0:02:55]}  h5 {[%clk 0:02:30]} 15. b4 {[%clk 0:02:54]}  Bxf3 {[%clk 0:02:27]} 16. gxf3 {[%clk 0:02:48]}  h4 {[%clk 0:02:28]} 17. Kg2 {[%clk 0:02:48]}  hxg3 {[%clk 0:02:25]} 18. fxg3 {[%clk 0:02:48]}  g6 {[%clk 0:02:26]} 19. Rh1 {[%clk 0:02:46]}  Kg7 {[%clk 0:02:26]} 20. Nc5 {[%clk 0:02:39]}  Nxc5 {[%clk 0:02:22]} 21. bxc5 {[%clk 0:02:31]}  e5 {[%clk 0:02:14]} 22. Rb1 {[%clk 0:02:30]}  exd4 {[%clk 0:02:11]} 23. exd4 {[%clk 0:02:25]}  Rc7 {[%clk 0:02:09]} 24. Rh4 {[%clk 0:02:17]}  Re8 {[%clk 0:02:02]} 25. Kf2 {[%clk 0:02:14]}  Qe7 {[%clk 0:01:59]} 26. Qd2 {[%clk 0:02:14]}  Rh8 {[%clk 0:01:41]} 27. Rxh8 {[%clk 0:02:04]}  Kxh8 {[%clk 0:01:42]} 28. Rh1+ {[%clk 0:02:03]}  Kg8 {[%clk 0:01:42]} 29. Qf4 {[%clk 0:02:01]}  Rd7 {[%clk 0:01:32]} 30. Bd3 {[%clk 0:01:57]}  Qf8 {[%clk 0:01:28]} 31. Bxg6 {[%clk 0:01:29]}  Qg7 {[%clk 0:01:27]} 32. Bf5 {[%clk 0:01:18]}  Re7 {[%clk 0:01:20]} 33. Rh4 {[%clk 0:01:18]}  Kf8 {[%clk 0:01:16]} 34. Bd3 {[%clk 0:01:11]}  Ke8 {[%clk 0:00:48]} 35. Bc2 {[%clk 0:01:07]}  Kd8 {[%clk 0:00:41]} 36. Ba4 {[%clk 0:00:59]}  Qg6 {[%clk 0:00:29]} 37. Rh8+ {[%clk 0:00:56]}  Kd7 {[%clk 0:00:29]} 38. Rb8 {[%clk 0:00:53]}  Qd3 {[%clk 0:00:19]} 39. Qd6# {[%clk 0:00:53]} 1-0


[Site "https://www.chess.com"]

[Event "Titled Tuesday Blitz August 24 2021"]
[White "Pakleza, Zbigniew"]
[Black "Biletskiy, Danylo"]
[WhiteFideId "1119290"]
[BlackFideId "14155419"]
[WhiteElo "2526"]
[BlackElo "2099"]
[Result "1-0"]
[Round "07"]
[TimeControl "180+1"]
[Date "2021.08.24"]
[WhiteClock "0:00:28"]
[BlackClock "0:00:58"]

1. Nf3 {[%clk 0:03:00]}  Nf6 {[%clk 0:02:55]} 2. c4 {[%clk 0:03:00]}  e6 {[%clk 0:02:55]} 3. Nc3 {[%clk 0:03:00]}  d5 {[%clk 0:02:56]} 4. cxd5 {[%clk 0:02:49]}  exd5 {[%clk 0:02:57]} 5. d4 {[%clk 0:02:49]}  c6 {[%clk 0:02:57]} 6. Bg5 {[%clk 0:02:49]}  Bf5 {[%clk 0:02:57]} 7. Qb3 {[%clk 0:02:48]}  Qd7 {[%clk 0:02:53]} 8. Bxf6 {[%clk 0:02:47]}  gxf6 {[%clk 0:02:54]} 9. e3 {[%clk 0:02:44]}  Bd6 {[%clk 0:02:53]} 10. Qd1 {[%clk 0:02:34]}  Qc7 {[%clk 0:02:47]} 11. Bd3 {[%clk 0:02:32]}  Bg6 {[%clk 0:02:47]} 12. g3 {[%clk 0:02:25]}  Nd7 {[%clk 0:02:46]} 13. Nh4 {[%clk 0:02:21]}  Bb4 {[%clk 0:02:42]} 14. O-O {[%clk 0:02:17]}  O-O {[%clk 0:02:34]} 15. Ne2 {[%clk 0:02:07]}  Bd6 {[%clk 0:02:32]} 16. Nf5 {[%clk 0:02:04]}  Rfe8 {[%clk 0:02:26]} 17. Rc1 {[%clk 0:01:59]}  a5 {[%clk 0:02:21]} 18. Nc3 {[%clk 0:01:52]}  Qb8 {[%clk 0:02:17]} 19. Kg2 {[%clk 0:01:48]}  Bf8 {[%clk 0:02:17]} 20. h4 {[%clk 0:01:46]}  Bg7 {[%clk 0:02:08]} 21. h5 {[%clk 0:01:35]}  Bxf5 {[%clk 0:02:05]} 22. Bxf5 {[%clk 0:01:36]}  Nf8 {[%clk 0:02:02]} 23. h6 {[%clk 0:01:20]}  Bxh6 {[%clk 0:02:02]} 24. Rh1 {[%clk 0:01:21]}  Bg7 {[%clk 0:02:02]} 25. Qh5 {[%clk 0:01:15]}  h6 {[%clk 0:02:03]} 26. Ne2 {[%clk 0:01:16]}  Ng6 {[%clk 0:01:58]} 27. Bxg6 {[%clk 0:01:14]}  fxg6 {[%clk 0:01:59]} 28. Qxg6 {[%clk 0:01:15]}  Re7 {[%clk 0:01:57]} 29. Rxh6 {[%clk 0:01:11]}  Qe8 {[%clk 0:01:57]} 30. Qh7+ {[%clk 0:01:04]}  Kf7 {[%clk 0:01:53]} 31. Nf4 {[%clk 0:00:50]}  Qg8 {[%clk 0:01:48]} 32. Qg6+ {[%clk 0:00:50]}  Kf8 {[%clk 0:01:49]} 33. Rh7 {[%clk 0:00:49]}  Qf7 {[%clk 0:01:41]} 34. Rch1 {[%clk 0:00:42]}  Qg8 {[%clk 0:01:30]} 35. R1h4 {[%clk 0:00:33]}  Ra6 {[%clk 0:01:23]} 36. Rg4 {[%clk 0:00:30]}  Rb6 {[%clk 0:00:58]} 37. Nh5 {[%clk 0:00:28]} 1-0


[Site "https://www.chess.com"]

[Event "Titled Tuesday Blitz August 24 2021"]
[White "Pastar, Slaven"]
[Black "Mikhailovsky, Vladimir"]
[WhiteFideId "14402718"]
[BlackFideId "34105414"]
[WhiteElo "2150"]
[BlackElo "2315"]
[Result "0-1"]
[Round "07"]
[TimeControl "180+1"]
[Date "2021.08.24"]
[WhiteClock "0:00:01"]
[BlackClock "0:00:04"]

1. b3 {[%clk 0:03:00]}  d5 {[%clk 0:02:57]} 2. Bb2 {[%clk 0:03:01]}  Bg4 {[%clk 0:02:56]} 3. h3 {[%clk 0:02:59]}  Bh5 {[%clk 0:02:55]} 4. g3 {[%clk 0:03:00]}  Bg6 {[%clk 0:02:55]} 5. Nf3 {[%clk 0:02:59]}  c6 {[%clk 0:02:56]} 6. Bg2 {[%clk 0:02:59]}  Nd7 {[%clk 0:02:56]} 7. O-O {[%clk 0:02:58]}  Ngf6 {[%clk 0:02:56]} 8. d3 {[%clk 0:02:57]}  Qc7 {[%clk 0:02:55]} 9. Nc3 {[%clk 0:02:54]}  e5 {[%clk 0:02:55]} 10. Re1 {[%clk 0:02:52]}  d4 {[%clk 0:02:41]} 11. Nb1 {[%clk 0:02:43]}  Bb4 {[%clk 0:02:41]} 12. c3 {[%clk 0:02:43]}  dxc3 {[%clk 0:02:38]} 13. Bxc3 {[%clk 0:02:44]}  Bxc3 {[%clk 0:02:37]} 14. Nxc3 {[%clk 0:02:44]}  O-O {[%clk 0:02:37]} 15. Qc2 {[%clk 0:02:39]}  Rfe8 {[%clk 0:02:34]} 16. Nd2 {[%clk 0:02:34]}  Nc5 {[%clk 0:02:18]} 17. b4 {[%clk 0:02:24]}  Ne6 {[%clk 0:02:17]} 18. Nb3 {[%clk 0:02:24]}  Rad8 {[%clk 0:02:11]} 19. Rec1 {[%clk 0:02:18]}  a6 {[%clk 0:02:03]} 20. a4 {[%clk 0:02:17]}  Qe7 {[%clk 0:02:01]} 21. b5 {[%clk 0:02:11]}  axb5 {[%clk 0:01:59]} 22. axb5 {[%clk 0:02:12]}  Nd4 {[%clk 0:01:50]} 23. Nxd4 {[%clk 0:02:06]}  exd4 {[%clk 0:01:50]} 24. bxc6 {[%clk 0:01:27]}  dxc3 {[%clk 0:01:42]} 25. cxb7 {[%clk 0:01:26]}  Nd5 {[%clk 0:01:14]} 26. Qb3 {[%clk 0:01:21]}  Nf6 {[%clk 0:00:14]} 27. Ra8 {[%clk 0:01:13]}  Nd7 {[%clk 0:00:12]} 28. Rxd8 {[%clk 0:01:05]}  Rxd8 {[%clk 0:00:13]} 29. Rxc3 {[%clk 0:01:04]}  Nb8 {[%clk 0:00:14]} 30. Rc8 {[%clk 0:01:00]}  Qd7 {[%clk 0:00:11]} 31. Qc4 {[%clk 0:00:19]}  Bf5 {[%clk 0:00:10]} 32. Rxd8+ {[%clk 0:00:13]}  Qxd8 {[%clk 0:00:11]} 33. g4 {[%clk 0:00:11]}  Be6 {[%clk 0:00:11]} 34. Qc5 {[%clk 0:00:10]}  h6 {[%clk 0:00:10]} 35. f4 {[%clk 0:00:09]}  f6 {[%clk 0:00:06]} 36. f5 {[%clk 0:00:09]}  Bd7 {[%clk 0:00:06]} 37. Bd5+ {[%clk 0:00:08]}  Kh7 {[%clk 0:00:05]} 38. Qd6 {[%clk 0:00:09]}  Qe8 {[%clk 0:00:05]} 39. Be6 {[%clk 0:00:08]}  Bc6 {[%clk 0:00:03]} 40. e4 {[%clk 0:00:04]}  Bxb7 {[%clk 0:00:03]} 41. Qc7 {[%clk 0:00:04]}  Ba6 {[%clk 0:00:03]} 42. Bf7 {[%clk 0:00:04]}  Qf8 {[%clk 0:00:03]} 43. Bg6+ {[%clk 0:00:04]}  Kh8 {[%clk 0:00:04]} 44. Qc3 {[%clk 0:00:02]}  Nd7 {[%clk 0:00:03]} 45. Kf2 {[%clk 0:00:02]}  Nc5 {[%clk 0:00:04]} 46. Qa3 {[%clk 0:00:01]}  Nxd3+ {[%clk 0:00:04]} 0-1


[Site "https://www.chess.com"]

[Event "Titled Tuesday Blitz August 24 2021"]
[White "Perez Gormaz, Matias"]
[Black "Omariev, Maksim"]
[WhiteFideId "3406342"]
[BlackFideId "4193423"]
[WhiteElo "2352"]
[BlackElo "2428"]
[Result "0-1"]
[Round "07"]
[TimeControl "180+1"]
[Date "2021.08.24"]
[WhiteClock "0:00:03"]
[BlackClock "0:00:06"]

1. e4 {[%clk 0:03:00]}  c5 {[%clk 0:02:59]} 2. Nf3 {[%clk 0:03:01]}  d6 {[%clk 0:02:58]} 3. d4 {[%clk 0:03:02]}  cxd4 {[%clk 0:02:58]} 4. Nxd4 {[%clk 0:03:02]}  Nf6 {[%clk 0:02:59]} 5. Nc3 {[%clk 0:03:03]}  a6 {[%clk 0:02:59]} 6. Bg5 {[%clk 0:03:03]}  Nbd7 {[%clk 0:02:59]} 7. Bc4 {[%clk 0:03:02]}  b5 {[%clk 0:02:52]} 8. Bb3 {[%clk 0:02:54]}  Bb7 {[%clk 0:02:50]} 9. Qe2 {[%clk 0:02:52]}  e6 {[%clk 0:02:43]} 10. O-O-O {[%clk 0:02:42]}  Qc7 {[%clk 0:02:10]} 11. a3 {[%clk 0:02:25]}  Nc5 {[%clk 0:02:06]} 12. Bxf6 {[%clk 0:02:24]}  gxf6 {[%clk 0:02:05]} 13. Kb1 {[%clk 0:02:25]}  Nxb3 {[%clk 0:01:57]} 14. cxb3 {[%clk 0:02:23]}  Qb6 {[%clk 0:01:43]} 15. Qh5 {[%clk 0:02:20]}  Qc5 {[%clk 0:01:31]} 16. Qh3 {[%clk 0:02:00]}  b4 {[%clk 0:01:15]} 17. Na4 {[%clk 0:01:22]}  Qe5 {[%clk 0:00:40]} 18. axb4 {[%clk 0:01:20]}  Qxe4+ {[%clk 0:00:32]} 19. Ka2 {[%clk 0:01:18]}  Qxg2 {[%clk 0:00:32]} 20. Qe3 {[%clk 0:00:41]}  Be7 {[%clk 0:00:28]} 21. Rhe1 {[%clk 0:00:36]}  Rg8 {[%clk 0:00:18]} 22. f3 {[%clk 0:00:20]}  Rd8 {[%clk 0:00:14]} 23. Nf5 {[%clk 0:00:19]}  Qxf3 {[%clk 0:00:12]} 24. Qa7 {[%clk 0:00:01]}  exf5 {[%clk 0:00:07]} 25. Nb6 {[%clk 0:00:02]}  Kf8 {[%clk 0:00:06]} 26. Nc4 {[%clk 0:00:02]}  Re8 {[%clk 0:00:04]} 27. Nd2 {[%clk 0:00:02]}  Qc6 {[%clk 0:00:04]} 28. Nc4 {[%clk 0:00:02]}  Qb5 {[%clk 0:00:03]} 29. Na5 {[%clk 0:00:02]}  Bd5 {[%clk 0:00:03]} 30. Rd4 {[%clk 0:00:02]}  Be6 {[%clk 0:00:03]} 31. Rc1 {[%clk 0:00:01]}  d5 {[%clk 0:00:03]} 32. Rc7 {[%clk 0:00:02]}  Bxb4 {[%clk 0:00:02]} 33. Nc6 {[%clk 0:00:03]}  Be7 {[%clk 0:00:02]} 34. Nxe7 {[%clk 0:00:02]}  Kg7 {[%clk 0:00:03]} 35. Nxg8 {[%clk 0:00:02]}  Kxg8 {[%clk 0:00:04]} 36. Qc5 {[%clk 0:00:02]}  Qe2 {[%clk 0:00:03]} 37. Qc3 {[%clk 0:00:02]}  Kh8 {[%clk 0:00:03]} 38. Rd3 {[%clk 0:00:02]}  Qe5 {[%clk 0:00:03]} 39. Rd4 {[%clk 0:00:01]}  f4 {[%clk 0:00:03]} 40. Rc5 {[%clk 0:00:02]}  Rg8 {[%clk 0:00:02]} 41. Rd3 {[%clk 0:00:01]}  Qxc3 {[%clk 0:00:02]} 42. bxc3 {[%clk 0:00:02]}  Rg2+ {[%clk 0:00:02]} 43. Ka3 {[%clk 0:00:02]}  Bg4 {[%clk 0:00:02]} 44. Ra5 {[%clk 0:00:02]}  f3 {[%clk 0:00:03]} 45. Rxa6 {[%clk 0:00:03]}  f2 {[%clk 0:00:03]} 46. Rxf6 {[%clk 0:00:03]}  Be2 {[%clk 0:00:04]} 47. Rd2 {[%clk 0:00:03]}  Kg7 {[%clk 0:00:04]} 48. Rxe2 {[%clk 0:00:03]}  Kxf6 {[%clk 0:00:04]} 49. Rd2 {[%clk 0:00:02]}  Ke5 {[%clk 0:00:04]} 50. Rd1 {[%clk 0:00:02]}  Rg1 {[%clk 0:00:04]} 51. Rd3 {[%clk 0:00:02]}  f1=Q {[%clk 0:00:04]} 52. Re3+ {[%clk 0:00:02]}  Kd6 {[%clk 0:00:05]} 53. Rh3 {[%clk 0:00:03]}  Qa6+ {[%clk 0:00:05]} 54. Kb4 {[%clk 0:00:03]}  Qb7+ {[%clk 0:00:06]} 0-1


[Site "https://www.chess.com"]